Cogmind - Beta 9.6 *** ADVENTURER MODE // 2020.07.26 @ 22:07:53 Player: Plexion Result: Self-destructed Performance ------------- Evolutions (0) 0 Regions Visited (4) 800 Robots Destroyed (11) 55 Value Destroyed (282) 282 Prototype IDs (22) 440 Alien Tech Used (0) 0 Bonus (60) 60 TOTAL SCORE: 1637 Bonus ------- Follower Combat Kills 60 Cogmind --------- Core Integrity 156/250 Matter 300/300 Energy 100/100 System Corruption 0% Temperature Cool (0) Movement Walking (170) Ox1 Location -9/Mines Parts ------- > --- POWER (1) -------- (None) > --- PROPULSION (2) --- Makeshift Leg > --- UTILITY (2) ------ Large Storage Unit Large Storage Unit > --- WEAPON (2) ------- Assault Rifle > --- INVENTORY (16) --- Ion Engine Aluminum Leg Aluminum Leg Aluminum Leg Aluminum Leg Medium Storage Unit Medium Storage Unit Skeleton Box Assault Rifle Light Assault Rifle Mining Claw Mining Claw Peak State ------------ > --- POWER ------------ Ion Engine > --- PROPULSION ------- Carbon-fiber Leg Makeshift Leg > --- UTILITY ---------- Large Storage Unit Large Storage Unit > --- WEAPON ----------- Assault Rifle Assault Rifle > --- INVENTORY -------- Ion Engine Aluminum Leg Aluminum Leg Aluminum Leg Medium Storage Unit Medium Storage Unit Assault Rifle Light Assault Rifle Mining Claw Mining Claw [Rating: 13] Favorites ----------- Power Ion Engine Engine Ion Engine Propulsion Aluminum Leg Leg Aluminum Leg Utility Large Storage Unit Storage Large Storage Unit Weapon Assault Rifle Ballistic Gun Assault Rifle Slashing Weapon Mining Claw Build | -11 -10 -10 -10 -9 ------- Run | Scr Mat Min Exi Min Slots Evolved . | . . . . . Power . | . . . . . Propulsion . | . . . . . Utility . | . . . . . Weapon . | . . . . . Parts Attached 15 | 6 7 2 . . Power 1 | 1 . . . . Engine 1 | 1 . . . . Core . | . . . . . Reactor . | . . . . . Propulsion 4 | 2 . 2 . . Treads . | . . . . . Leg 4 | 2 . 2 . . Wheel . | . . . . . Hover . | . . . . . Flight . | . . . . . Utility 6 | 1 5 . . . Device . | . . . . . Storage 6 | 1 5 . . . Processor . | . . . . . Hackware . | . . . . . Protection . | . . . . . Artifact . | . . . . . Weapon 4 | 2 2 . . . Energy Gun . | . . . . . Energy Cannon . | . . . . . Ballistic Gun 3 | 2 1 . . . Ballistic Cannon . | . . . . . Launcher . | . . . . . Special Weapon . | . . . . . Impact Weapon . | . . . . . Slashing Weapon 1 | . 1 . . . Piercing Weapon . | . . . . . Special Melee Weapon . | . . . . . Unidentified Prototypes . | . . . . . Parts Lost 3 | . . . . 3 Power 1 | . . . . 1 Propulsion 1 | . . . . 1 Utility . | . . . . . Weapon 1 | . . . . 1 Highest Loss Streak 3 | . . . . 3 Average Slot Usage (%) 99 | . 99 100 100 97 Engine 13 | . 14 14 14 13 Leg 27 | . 28 28 28 26 Storage 27 | . 27 28 28 28 Ballistic Gun 26 | . 24 28 28 26 Naked Turns . | . . . . . Heaviest Build 57 | 13 57 41 41 41 Greatest Support 35 | 20 20 35 35 35 Greatest Overweight (x) 3 | 3 2 2 1 1 Average Overweight (x) . | . . 1 1 1 Largest Inventory Capacity 18 | 6 18 16 16 16 Average Capacity 14 | 5 10 16 16 16 Most Carried 12 | 2 10 11 12 12 Average Carried 8 | . 4 9 11 12 Final Capacity 16 | 6 16 16 16 16 Final Carried 12 | 2 8 11 12 12 Class Distribution -------------------- 100% | Mutant Dominant Class ---------------- Mutant | -10/Materials Mutant | -10/Mines Mutant | -10/Exiles Mutant | -9/Mines Resources | -11 -10 -10 -10 -9 ----------- Run | Scr Mat Min Exi Min Matter Collected 517 | 260 58 182 6 11 Remotely . | . . . . . Salvage Created 305 | . 111 130 12 52 Parts 17 | . 5 10 . 2 Haulers Intercepted . | . . . . . Recyclers Shooed 1 | . 1 . . . Parts Field Recycled . | . . . . . Retrieved Matter . | . . . . . Parts Self-Destructed . | . . . . . Prevented . | . . . . . Kills | -11 -10 -10 -10 -9 ------- Run | Scr Mat Min Exi Min Combat Hostiles Destroyed 10 | . 4 4 . 2 Guns 10 | . 4 4 . 2 Classes Destroyed 4 | . 3 . . 1 Worker 1 | . 1 . . . Swarmer 5 | . 3 2 . . Grunt 3 | . 1 2 . . Demolisher 2 | . . . . 2 Best Kill Streak 3 | . 3 2 . 2 Combat Bots Only 3 | . 3 2 . 2 Max Kills in Single Turn 1 | . 1 1 . 1 Gunslinging . | . . . . . Exploded . | . . . . . Melee . | . . . . . Uniques/NPCs Destroyed . | . . . . . Combat | -11 -10 -10 -10 -9 -------- Run | Scr Mat Min Exi Min Damage Taken 619 | . 82 125 . 412 Core 94 | . 7 29 . 58 Absorbed by Shields . | . . . . . Core Remaining (%) 100 | 100 . . . . Volleys Fired 30 | . 12 13 1 4 Largest 2 | . 2 2 2 2 Hottest 40 | . 40 40 40 40 Shots Fired 60 | . 24 26 2 8 Gun 60 | . 24 26 2 8 Cannon . | . . . . . Launcher . | . . . . . Special . | . . . . . Kinetic 60 | . 24 26 2 8 Thermal . | . . . . . Explosive . | . . . . . Electromagnetic . | . . . . . Robot Hit Streak 18 | . 4 10 11 18 Robot Miss Streak 5 | . 5 2 . . Penetration Max . | . . . . . Secondary Targets 1 | . . 1 . . Max Gunslinging Chain 1 | . . 1 . . Shots Hit Robots 39 | . 10 21 1 7 Core Hits 19 | . 5 8 1 5 Critical Hits 1 | . . 1 . . Critical Kills 1 | . . 1 . . Critical Parts Destroyed . | . . . . . Melee Attacks 5 | . 5 . . . Impact . | . . . . . Slashing 5 | . 5 . . . Piercing . | . . . . . Sneak Attacks . | . . . . . Combat Hostiles . | . . . . . Follow-up Attacks . | . . . . . Damage Inflicted 528 | . 149 260 24 95 Guns 528 | . 149 260 24 95 Cannons . | . . . . . Explosions . | . . . . . Melee . | . . . . . Ramming . | . . . . . Kinetic 528 | . 149 260 24 95 Thermal . | . . . . . Explosive . | . . . . . Electromagnetic . | . . . . . Impact . | . . . . . Slashing . | . . . . . Piercing . | . . . . . Highest Corruption . | . . . . . Average Corruption . | . . . . . Corruption Purged . | . . . . . Overload Shots . | . . . . . Overflow Damage . | . . . . . Projectiles . | . . . . . Explosions . | . . . . . Melee . | . . . . . Knockbacks . | . . . . . Impact . | . . . . . Kinetic . | . . . . . Secondary . | . . . . . Self-Inflicted Damage . | . . . . . Shots . | . . . . . Rammed . | . . . . . Targets Rammed . | . . . . . Kicked . | . . . . . Crushed . | . . . . . Highest Temperature 3 | . . 3 . 1 Average Temperature 1 | . . 1 . 1 Received Heat Transfer 339 | . 18 81 . 240 Siege Activations . | . . . . . Robots Corrupted . | . . . . . Combat Hostiles . | . . . . . Parts Fried . | . . . . . Impact Corruptions . | . . . . . Robots Melted . | . . . . . Combat Hostiles . | . . . . . Parts Melted . | . . . . . Heat Transferred . | . . . . . Parts Sabotaged . | . . . . . Parts Stolen . | . . . . . Parts Stripped . | . . . . . Power Chain Reactions . | . . . . . Missiles Intercepted . | . . . . . Alert | -11 -10 -10 -10 -9 ------- Run | Scr Mat Min Exi Min Peak Influence 126 | . 126 81 . 50 Average Influence 37 | . 50 38 . 14 Maximum Alert Level . | . . . . . Low Security (%) 100 | 100 100 100 . 100 Level 1 . | . . . . . Level 2 . | . . . . . Level 3 . | . . . . . Level 4 . | . . . . . Level 5 . | . . . . . High Security . | . . . . . Max Security . | . . . . . Squads Dispatched . | . . . . . Investigation . | . . . . . Extermination . | . . . . . Reinforcement . | . . . . . Assault . | . . . . . Garrison . | . . . . . Intercept . | . . . . . Construction Impeded . | . . . . . Haulers Reinforced . | . . . . . Stealth | -11 -10 -10 -10 -9 --------- Run | Scr Mat Min Exi Min Distress Signals 1 | . . . . 1 Communications Jammed . | . . . . . Distress Signals . | . . . . . Times Spotted 17 | . 6 6 . 5 Peak Tracking Total 5 | . 5 2 . 5 Tactical Retreats 2 | . . . . 2 Traps | -11 -10 -10 -10 -9 ------- Run | Scr Mat Min Exi Min Traps Triggered . | . . . . . Indirectly . | . . . . . Trap Hack Attempts . | . . . . . Triggered . | . . . . . Disarmed . | . . . . . Reprogrammed . | . . . . . Reused . | . . . . . Traps Extracted . | . . . . . Installed . | . . . . . Triggered . | . . . . . Machines | -11 -10 -10 -10 -9 ---------- Run | Scr Mat Min Exi Min Machines Disabled 1 | . 1 . . . Max in Single Turn 1 | . 1 . . . Machines Sabotaged . | . . . . . Garrisons Compromised . | . . . . . Overloaded Fab Kills . | . . . . . Fab Network Shutdowns . | . . . . . Hacking | -11 -10 -10 -10 -9 --------- Run | Scr Mat Min Exi Min Machines Accessed 3 | . 2 . 1 . Terminals 2 | . 2 . . . Fabricators . | . . . . . Repair Stations . | . . . . . Recycling Units . | . . . . . Scanalyzers . | . . . . . Garrison Access . | . . . . . Total Hacks 4 | . 3 . 1 . Successful 3 | . 2 . 1 . Failed 1 | . 1 . . . Catastrophic . | . . . . . Database Lockouts . | . . . . . Manual 4 | . 3 . 1 . Terminals 3 | . 3 . . . Fabricators . | . . . . . Repair Stations . | . . . . . Recycling Units . | . . . . . Scanalyzers . | . . . . . Garrison Access . | . . . . . Terminal Hacks 3 | . 2 . 1 . Branch Access Points 1 | . 1 . . . Zone Layout 1 | . 1 . . . EX-Prototype ID Bank 1 | . . . 1 . Fabricator Hacks . | . . . . . Repair Station Hacks . | . . . . . Recycling Unit Hacks . | . . . . . Scanalyzer . | . . . . . Garrison Access Hacks . | . . . . . Unauthorized Hacks . | . . . . . Terminals . | . . . . . Fabricators . | . . . . . Repair Stations . | . . . . . Recycling Units . | . . . . . Scanalyzers . | . . . . . Garrison Access . | . . . . . Data Cores Recovered . | . . . . . Used . | . . . . . Hacking Detections . | . . . . . Full Trace Events . | . . . . . Feedback Events . | . . . . . Feedback Blocked . | . . . . . Robot Schematics Acquired . | . . . . . Robots Built . | . . . . . Matter . | . . . . . Time . | . . . . . Total Robot Build Rating . | . . . . . Part Schematics Acquired . | . . . . . Parts Built . | . . . . . Matter . | . . . . . Time . | . . . . . Total Part Build Rating . | . . . . . Parts Repaired . | . . . . . Time . | . . . . . Parts Recycled . | . . . . . Recycled Matter . | . . . . . Retrieved Matter . | . . . . . Retrieved Components . | . . . . . Parts Scanalyzed . | . . . . . Part Schematics Acquired . | . . . . . Parts Damaged . | . . . . . Bothacking | -11 -10 -10 -10 -9 ------------ Run | Scr Mat Min Exi Min Used RIF Installer . | . . . . . Robots Hacked . | . . . . . Non-combat . | . . . . . Combat . | . . . . . Robot Hacks Applied . | . . . . . Relay Couplers Released . | . . . . . Robots Rewired 3 | . . . 3 . Allies Hacked . | . . . . . Hacks Repelled . | . . . . . Allies | -11 -10 -10 -10 -9 -------- Run | Scr Mat Min Exi Min Total Allies 5 | . . 2 3 . Largest Group 3 | . . 2 3 3 Highest-Rated Group 48 | . . 48 24 24 Highest-Rated Ally 31 | . . 31 8 8 Total Orders . | . . . . . Ally Attacks 15 | . . 14 . 1 Total Damage 212 | . . 202 . 10 Kills 2 | . . 2 . . Allies Corrupted . | . . . . . Allies Melted . | . . . . . Intel | -11 -10 -10 -10 -9 ------- Run | Scr Mat Min Exi Min Robot Analysis Total . | . . . . . Derelict Logs Recovered 1 | . . 1 . . Drone Launches . | . . . . . Drone Recoveries . | . . . . . Exploration | -11 -10 -10 -10 -9 ------------- Run | Scr Mat Min Exi Min Turns Passed 2004 | 57 524 478 691 254 Spaces Moved 1186 | 39 332 243 422 150 Core 11 | 11 . . . . Treads . | . . . . . Legs 1175 | 28 332 243 422 150 Wheels . | . . . . . Hover . | . . . . . Flight . | . . . . . Fastest Speed 50 | 50 120 160 160 160 Average Speed 152 | 119 132 166 160 160 Slowest Speed 200 | 200 180 180 160 170 Overloaded Moves . | . . . . . Propulsion Burnouts . | . . . . . Robots Hopped . | . . . . . Cave-ins Triggered . | . . . . . Exploration Rate (%) 49 | 4 50 58 90 43 Regions Visited 4 Branch Regions 3 Pre-discovered Areas . | . . . . . Known Exits Taken 1 | . 1 . . . Unknown Exits Taken 3 | 1 . 1 1 . Scrap Searched 3 | . . 1 . 2 Spaces Dug 3 | . 3 . . . Terrain Destroyed 3 | . 3 . . . Melee 3 | . 3 . . . Projectile . | . . . . . AOE . | . . . . . Actions | -11 -10 -10 -10 -9 --------- Run | Scr Mat Min Exi Min Total 1305 | 46 379 290 436 154 Wait 47 | . 15 32 . . Move 1182 | 38 331 242 421 150 Hop . | . . . . . Pick Up 10 | 2 6 1 1 . Fast Attach 7 | 6 1 . . . Attach . | . . . . . Detach . | . . . . . Swap 8 | . 6 2 . . Drop 3 | . 3 . . . Fire 30 | . 12 13 1 4 Melee 5 | . 5 . . . Ram . | . . . . . Kick . | . . . . . Crush . | . . . . . Escape Stasis . | . . . . . Rewire 13 | . . . 13 . Trap . | . . . . . Miscellaneous . | . . . . . Route ------- -11/Scrapyard -10/Materials (discovered 2 exits: [*Mat] / *Min) -10/Mines (discovered 3 exits: [*Mat x2] / *Exi) -10/Exiles -9/Mines History --------- Turn | Location | Event 25 | -11/Scrapyard | Discovered new exit (range 15) 58 | -11/Scrapyard | Entered Materials 140 | -10/Materials | Identified exit to Mines 302 | -10/Materials | Build established: Mutant 319 | -10/Materials | Discovered new exit (range 13) 582 | -10/Materials | Entered Mines 593 | -10/Mines | Discovered new exit (range 8) 604 | -10/Mines | Met a Derelict bent on vengeance 715 | -10/Mines | Discovered new exit (range 5) 970 | -10/Mines | Learned Materials terminal intel 1052 | -10/Mines | Deemed a non-threat by the Exiles lab entrance 1053 | -10/Mines | Discovered new exit (range 5) 1060 | -10/Mines | Entered Exiles 1060 | -10/Exiles | Found Exiles lab destroyed 1246 | -10/Exiles | Opened EX-Vault 1257 | -10/Exiles | Found Skeleton Box 1735 | -10/Exiles | Discovered new exit (range 11) 1751 | -10/Exiles | Entered Mines 1751 | -9/Mines | Accompanied by 3 allies 1887 | -9/Mines | Assembled infested the area 1892 | -9/Mines | Assisted by a Guerilla fighting off Assembled 2005 | -9/Mines | Self-destructed Last Messages --------------- 01916_ K-01 Serf collects debris. 01918_ The unstable cave ceiling collapses. 01918_ K-01 Serf collects debris. 01918_ K-01 Serf destroyed. 01922_ K-01 Serf collects debris. 01922_ D-53 Grenadier destroyed. 01924_ The unstable cave ceiling collapses. 01925_ Cmb. Airjet crushed. 01926_ K-01 Serf collects debris. 01927_ Acquired 11 matter. 01929_ The unstable cave ceiling collapses. 01929_ K-01 Serf collects debris. 01946_ The unstable cave ceiling collapses. 01946_ K-01 Serf collects debris. 01949_ K-01 Serf destroyed. 01951_ K-01 Serf collects debris. 01954_ K-01 Serf destroyed. 01985_ Assault Rifle destroyed. 01985_ Carbon-fiber Leg destroyed. 01998_ Ion Engine destroyed. Map ----- +----------------------------------------------------+ | | | | | | | | | | | | | | | ??????????????????????????????? | | ??????????????????????????????? | | ??????????????????????????????? | | ??????????????????????????????? | | ??????????????????????????????? | | ??????????????????????????????? | | ??????????????????????????????? | | ??????????????????????????????? | | ??????????????????????????????? | | ??????????????????????????????? | | ??????????????????????????????? | | ??????????????????????????????? | | ??????????????????????????????? | | ??????????????????????????????? | | ??????????????????######??????? | | ???#########??##### ##?????? | | ??## #### ##????? | | ??# ## #????? | | ??# @ a #????? | | ?# ##????? | | ?# #### a ## ##?????? | | ?## #####??## ##?###??????? | | ??###????????## #???????????? | | ??????????????## #???????????? | | ??????????????## #???????????? | | ?????????????## ##???????????? | | ?????????????# #????????????? | | ????????????## ##??####??????? | | ??????????### ##?## ##?????? | | ?????????## ### #?????? | | ?????????# #?????? | | ?????????# #?????? | | ?????????#### ##????? | | ????????????## ##???? | | ?????????????##### % ##### | | ?????????????????## = | | ??????????????????# | | ??????????????????## | | ??????????????????## * | | ?????????????????## | | ?????????????????# | | ?????????????????## # | | ??????????????????# | +----------------------------------------------------+ Best States ------------- Heat Dissipation 25 Energy Generation 10 Energy Capacity 250 Matter Stores 300 Matter Capacity 300 Sight Range 16 Terrain Scan Density 10 Resistance: KI 20 Resistance: TH 20 Resistance: EX 20 Resistance: EM 20 Resistance: I 20 Resistance: S 20 Resistance: P 20 Evasion (%) 40 Offensive Hacking 10 Item Schematics ----------------- None Robot Schematics ------------------ None Fabricated ------------ Nothing Alien Tech Used ----------------- None Achievements -------------- None Challenges ------------ None Game ------ Seed ShadeAlloySword Manual? 0 Play Time 00:09:31 Cumulative 66.2 hours Start 2020.07.26 @ 21:59:39 End 2020.07.26 @ 22:07:53 Sessions 1 Manual Loads 0 Difficulty Adventurer Special Mode None Game No. 76 Rogue 1 Adventurer 75 Explorer 0 Win Type - Total 2 Types 2/0/0/0/0/0/0 Lore% 34 Gallery% 50 Achievement% 44 Wizard Run 0 Options --------- ASCII 0 Keyboard 1 Movement Numpad Keybinds 0 Fullscreen 1 Font 18/SmallcapsGlow Map View 76x50 Tactical HUD 1 Map Filters NONE Filters NONE Steam 1 RUN: 740eb33a-08d5-4734-81b3-485954c9fc24